[Event "94th Tradewise Hastings Congress"]
[Site "Hastings"]
[Date "2018.12.29"]
[Round "2"]
[White "Kalavannan, Koby"]
[Black "Rolvag, Mikael"]
[Result "1-0"]
[ECO "E19"]
[WhiteElo "2328"]
[BlackElo "2107"]
[Annotator "NA"]
[PlyCount "99"]
[EventDate "2018.12.28"]
[EventType "swiss"]
[EventCountry "ENG"]
[SourceTitle "playchess.com"]
[Source "ChessBase"]
[SourceQuality "1"]
[TimeControl "40/6000+30:3000+30"]

1. d4 {[%emt 0:00:00]} Nf6 {[%emt 0:03:40]} 2. c4 {[%emt 0:00:00]} e6 {[%emt 0:01:01]} 3. Nf3 {[%emt 0:00:00]} b6 {[%emt 0:01:28]} 4. g3 {[%emt 0:00:00]} Bb7 {[%emt 0:01:37]} 5. Bg2 {[%emt 0:00:07]} Be7 {[%emt 0:00:38]} 6. O-O {[%emt 0:00:10]} O-O {[%emt 0:00:18]} 7. Nc3 {[%emt 0:00:06]} Ne4 {[%emt 0:01:18]} 8. Qc2 {[%emt 0:00:10]} Nxc3 {[%emt 0:00:06]} 9. Qxc3 {[%emt 0:00:05]} c5 {[%emt 0:00:30]} 10. Bf4 {[%emt 0:00:15]} d6 {[%emt 0:02:40]} 11. Rfd1 {[%emt 0:11:11]} Qc7 12. Rac1 cxd4 {[%emt 0:08:08]} 13. Nxd4 {[%emt 0:00:45]} Bxg2 {[%emt 0:00:06]} 14. Kxg2 a6 15. Qf3 {[%emt 0:23:37]} Ra7 {[%emt 0:08:56]} 16. Be3 Qc8 {[%emt 0:09:30]} 17. b3 {[%emt 0:29:13]} Re8 {[%emt 0:22:53]} 18. Nc2 {[%emt 0:03:40]} Rb7 {[%emt 0:02:22]} 19. Bf4 {[%emt 0:01:50]} Rd8 {[%emt 0:00:55]} 20. e4 Nc6 {[%emt 0:07:08]} 21. Be3 {[%emt 0:07:28]} Qa8 {[%emt 0:03:02]} 22. Nd4 {[%emt 0:02:14]} Ne5 23. Qe2 {[%emt 0:04:36]} Rbd7 {[%emt 0:08:57]} 24. f3 Rc8 25. Bf2 {[%emt 0:04:41]} Rdc7 {[%emt 0:07:29]} 26. Rc2 Bf8 {[%emt 0:04:47]} 27. Rcd2 {[%emt 0:06:30]} Qb7 28. a4 {[%emt 0:06:12]} Nd7 {[%emt 0:00:36]} 29. g4 {[%emt 0:01:36]} Nc5 {[%emt 0:06:26]} 30. Bg3 e5 {[%emt 0:01:13]} 31. Nf5 {[%emt 0:00:59]} Nxb3 {[%emt 0:00:22]} 32. Nxd6 {[%emt 0:00:42]} Bxd6 {[%emt 0:02:11]} 33. Rxd6 {[%emt 0:00:01]} f6 {[%emt 0:02:47]} 34. Qb2 {[%emt 0:01:49]} Na5 {[%emt 0:01:03]} 35. Rxb6 {[%emt 0:06:09]} Qa8 {[%emt 0:00:07]} 36. Bf2 {[%emt 0:00:55]} h5 {[%emt 0:00:41]} 37. c5 {[%emt 0:00:56]} hxg4 {[%emt 0:00:08]} 38. Qa2+ {[%emt 0:00:01]} Kh8 {[%emt 0:01:11]} 39. Qe6 {[%emt 0:00:34]} gxf3+ {[%emt 0:00:14]} 40. Kxf3 {[%emt 0:00:29]} Nc6 41. Rd3 {[%emt 0:15:22]} Re8 {[%emt 0:02:39]} 42. Rxa6 Rxe6 {[%emt 0:02:59]} 43. Rxa8+ {[%emt 0:04:16]} Kh7 {[%emt 0:00:07]} 44. Rd6 {[%emt 0:03:55]} Ree7 {[%emt 0:00:05]} 45. Ra6 {[%emt 0:02:02]} Nb8 {[%emt 0:01:47]} 46. Rab6 {[%emt 0:01:01]} Nd7 {[%emt 0:00:10]} 47. Rb5 {[%emt 0:06:26]} f5 48. exf5 {[%emt 0:02:07]} e4+ {[%emt 0:02:04]} 49. Kf4 {[%emt 0:00:26]} Nf6 {[%emt 0:01:47]} 50. Be3 {[%emt 0:06:58]} 1-0

[Event "94th Tradewise Hastings Congress"]
[Site "Hastings"]
[Date "2018.12.29"]
[Round "2"]
[White "Lyell, Mark"]
[Black "Taylor, Adam A"]
[Result "1-0"]
[ECO "B30"]
[WhiteElo "2317"]
[BlackElo "2122"]
[Annotator "NA"]
[PlyCount "115"]
[EventDate "2018.12.28"]
[EventType "swiss"]
[EventCountry "ENG"]
[SourceTitle "playchess.com"]
[Source "ChessBase"]
[SourceQuality "1"]
[TimeControl "40/6000+30:3000+30"]

1. e4 {[%emt 0:00:00]} c5 {[%emt 0:00:00]} 2. Nf3 {[%emt 0:00:00]} Nc6 {[%emt 0:00:00]} 3. Bb5 {[%emt 0:00:00]} e6 {[%emt 0:03:27]} 4. Bxc6 {[%emt 0:00:03]} dxc6 {[%emt 0:04:51]} 5. O-O {[%emt 0:02:27]} Nf6 {[%emt 0:15:37]} 6. d3 {[%emt 0:01:13]} Qc7 {[%emt 0:00:22]} 7. e5 {[%emt 0:06:28]} Nd5 {[%emt 0:01:22]} 8. Nbd2 {[%emt 0:02:11]} f6 {[%emt 0:15:47]} 9. Re1 {[%emt 0:01:35]} Be7 {[%emt 0:08:17]} 10. exf6 {[%emt 0:02:58]} gxf6 {[%emt 0:02:22]} 11. Ne4 {[%emt 0:06:50]} Bd7 {[%emt 0:18:16]} 12. Bh6 {[%emt 0:07:51]} Rg8 {[%emt 0:04:01]} 13. Qd2 {[%emt 0:02:46]} O-O-O {[%emt 0:13:34]} 14. c4 {[%emt 0:01:07]} Nb6 {[%emt 0:00:12]} 15. Be3 {[%emt 0:07:47]} e5 {[%emt 0:01:49]} 16. Qa5 {[%emt 0:07:06]} Kb8 {[%emt 0:08:06]} 17. Bxc5 {[%emt 0:03:53]} Bf5 {[%emt 0:04:58]} 18. Nh4 {[%emt 0:03:38]} Bxe4 {[%emt 0:01:58]} 19. dxe4 {[%emt 0:00:44]} Bxc5 {[%emt 0:01:15]} 20. Qxc5 {[%emt 0:00:04]} Rd4 {[%emt 0:00:51]} 21. b3 {[%emt 0:02:31]} Qg7 {[%emt 0:00:36]} 22. g3 {[%emt 0:08:03]} Nd7 {[%emt 0:01:41]} 23. Qb4 {[%emt 0:04:05]} c5 {[%emt 0:01:19]} 24. Qc3 {[%emt 0:00:49]} Qg4 {[%emt 0:00:26]} 25. Nf5 {[%emt 0:01:32]} Rxe4 {[%emt 0:00:42]} 26. Nh6 {[%emt 0:00:39]} Rxe1+ {[%emt 0:00:28]} 27. Rxe1 {[%emt 0:00:24]} Qg6 {[%emt 0:00:16]} 28. Nxg8 {[%emt 0:00:11]} Qxg8 {[%emt 0:00:04]} 29. Rd1 {[%emt 0:01:23]} Qg4 {[%emt 0:00:31]} 30. Qd3 {[%emt 0:01:14]} Kc7 {[%emt 0:01:03]} 31. Qd6+ {[%emt 0:00:33]} Kc8 {[%emt 0:00:03]} 32. f3 {[%emt 0:01:33]} Qg7 {[%emt 0:00:08]} 33. b4 {[%emt 0:02:54]} cxb4 {[%emt 0:01:26]} 34. c5 {[%emt 0:00:09]} Qf7 {[%emt 0:00:28]} 35. c6 {[%emt 0:00:55]} bxc6 {[%emt 0:00:03]} 36. Qxc6+ {[%emt 0:00:10]} Kd8 {[%emt 0:00:03]} 37. Qa8+ {[%emt 0:00:42]} Ke7 {[%emt 0:00:05]} 38. Qxa7 {[%emt 0:01:33]} Qe6 {[%emt 0:00:05]} 39. Qb7 {[%emt 0:01:30]} Qb6+ {[%emt 0:01:59]} 40. Qxb6 {[%emt 0:00:08]} Nxb6 {[%emt 0:00:03]} 41. Kf2 {[%emt 0:50:49]} Ke6 {[%emt 0:50:04]} 42. Ke2 {[%emt 0:03:19]} Nd5 {[%emt 0:01:43]} 43. Kd3 {[%emt 0:03:23]} Nc3 {[%emt 0:00:00]} 44. Ra1 {[%emt 0:00:00]} Nd5 {[%emt 0:00:00]} 45. Rc1 {[%emt 0:00:00]} Ne7 {[%emt 0:00:00]} 46. Kc4 {[%emt 0:00:00]} Nd5 {[%emt 0:00:00]} 47. g4 {[%emt 0:00:00]} h6 {[%emt 0:00:00]} 48. h4 {[%emt 0:00:00]} Nf4 {[%emt 0:00:00]} 49. Rd1 {[%emt 0:00:00]} Ng2 {[%emt 0:00:00]} 50. Kxb4 {[%emt 0:00:00]} Nxh4 {[%emt 0:00:00]} 51. a4 {[%emt 0:00:00]} Nxf3 {[%emt 0:00:00]} 52. a5 {[%emt 0:00:00]} e4 {[%emt 0:00:00]} 53. a6 {[%emt 0:00:00]} e3 {[%emt 0:00:00]} 54. a7 {[%emt 0:00:00]} e2 {[%emt 0:00:00]} 55. Ra1 {[%emt 0:00:00]} e1=Q+ {[%emt 0:00:00]} 56. Rxe1+ {[%emt 0:00:00]} Nxe1 {[%emt 0:00:00]} 57. a8=Q {[%emt 0:00:00]} Nd3+ {[%emt 0:00:00]} 58. Kc3 {[%emt 0:00:00] Kd5} 1-0

[Event "94th Tradewise Hastings Congress"]
[Site "Hastings"]
[Date "2018.12.29"]
[Round "2"]
[White "Stefansson, Vignir Vatnar"]
[Black "Sulskis, Sarunas"]
[Result "1/2-1/2"]
[ECO "A46"]
[WhiteElo "2266"]
[BlackElo "2525"]
[Annotator "ChessBase"]
[PlyCount "107"]
[EventDate "2018.12.28"]
[EventType "swiss"]
[EventCountry "ENG"]
[SourceTitle "playchess.com"]
[Source "ChessBase"]
[SourceQuality "1"]
[TimeControl "40/6000+30:3000+30"]

1. d4 {[%emt 0:00:00]} Nf6 {[%emt 0:00:00]} 2. Nf3 {[%emt 0:00:00]} e6 {[%emt 0:04:17]} 3. Bf4 {[%emt 0:00:00]} c5 {[%emt 0:05:54]} 4. e3 {[%emt 0:00:16]} Be7 {[%emt 0:01:30]} 5. Nbd2 {[%emt 0:01:36]} Nh5 {[%emt 0:03:12]} 6. Bg3 {[%emt 0:10:10]} O-O {[%emt 0:02:38]} 7. Bd3 {[%emt 0:03:48]} d5 {[%emt 0:06:02]} 8. Ne5 {[%emt 0:09:01]} g6 {[%emt 0:00:49]} 9. c3 {[%emt 0:08:20]} Nd7 {[%emt 0:03:54]} 10. Ndf3 {[%emt 0:03:21]} Nxe5 {[%emt 0:04:13]} 11. Nxe5 {[%emt 0:02:16]} Bf6 {[%emt 0:08:59]} 12. Nf3 {[%emt 0:06:27]} Nxg3 {[%emt 0:10:18]} 13. hxg3 {[%emt 0:00:19]} Rb8 14. g4 {[%emt 0:01:49]} b5 {[%emt 0:03:04]} 15. g5 {[%emt 0:05:51]} Bg7 16. b4 {[%emt 0:00:20]} cxd4 {[%emt 0:14:06]} 17. cxd4 e5 18. dxe5 {[%emt 0:02:47]} Bg4 {[%emt 0:02:18]} 19. Be2 {[%emt 0:01:30]} Bxf3 {[%emt 0:01:34]} 20. Bxf3 {[%emt 0:00:48]} Bxe5 {[%emt 0:00:28]} 21. Rc1 {[%emt 0:00:14]} d4 {[%emt 0:00:55]} 22. exd4 {[%emt 0:01:31]} Bxd4 {[%emt 0:03:22]} 23. O-O {[%emt 0:00:51]} Rb6 {[%emt 0:03:10]} 24. Qd2 {[%emt 0:05:01]} Bf6 {[%emt 0:06:30]} 25. Qxd8 {[%emt 0:00:25]} Bxd8 {[%emt 0:00:05]} 26. Rc5 {[%emt 0:12:01]} Be7 {[%emt 0:02:11]} 27. Rc7 {[%emt 0:00:10]} Bxb4 {[%emt 0:01:01]} 28. Rxa7 {[%emt 0:00:06]} Bd2 {[%emt 0:00:53]} 29. Rd1 {[%emt 0:00:11]} Rd8 {[%emt 0:03:19]} 30. Rb7 {[%emt 0:04:53]} Rxb7 31. Bxb7 {[%emt 0:00:06]} b4 {[%emt 0:01:56]} 32. g3 {[%emt 0:00:47]} Kf8 {[%emt 0:01:42]} 33. Kg2 {[%emt 0:00:15]} Bxg5 {[%emt 0:00:19]} 34. Rxd8+ {[%emt 0:00:04]} Bxd8 {[%emt 0:00:07]} 35. g4 {[%emt 0:00:13]} Bc7 {[%emt 0:00:57]} 36. f3 {[%emt 0:00:21]} Ke7 {[%emt 0:04:40]} 37. Bd5 {[%emt 0:00:06]} Bf4 {[%emt 0:01:39]} 38. Bc4 {[%emt 0:00:08]} h6 {[%emt 0:02:08]} 39. Bb3 {[%emt 0:00:41]} f5 {[%emt 0:02:09]} 40. gxf5 {[%emt 0:00:06]} gxf5 {[%emt 0:00:30]} 41. Bc4 {[%emt 0:50:05]} Kf6 {[%emt 0:50:06]} 42. Bb3 {[%emt 0:00:05]} Kg5 {[%emt 0:00:18]} 43. Be6 {[%emt 0:00:49]} h5 {[%emt 0:01:01]} 44. Bd7 {[%emt 0:00:12]} h4 {[%emt 0:00:57]} 45. Bc8 {[%emt 0:00:07]} Bg3 {[%emt 0:00:16]} 46. Bb7 {[%emt 0:00:20]} Kf4 {[%emt 0:00:11]} 47. Bd5 {[%emt 0:00:13]} Be1 {[%emt 0:01:20]} 48. Be6 {[%emt 0:00:43]} Ke5 {[%emt 0:00:28]} 49. Bb3 {[%emt 0:00:21]} Kd4 {[%emt 0:00:51]} 50. Be6 {[%emt 0:00:07]} f4 {[%emt 0:00:22]} 51. Bb3 {[%emt 0:00:05]} Kd3 {[%emt 0:01:01]} 52. Bf7 {[%emt 0:00:18]} Ke2 {[%emt 0:00:26]} 53. Bd5 {[%emt 0:00:05]} Bg3 {[%emt 0:01:07]} 54. Be4 {[%emt 0:00:05]} 1/2-1/2

[Event "94th Tradewise Hastings Congress"]
[Site "Hastings"]
[Date "2018.12.29"]
[Round "2"]
[White "Pitschka, Claus"]
[Black "Midhun, P U"]
[Result "1/2-1/2"]
[ECO "D00"]
[WhiteElo "2241"]
[BlackElo "2010"]
[Annotator "NA"]
[PlyCount "101"]
[EventDate "2018.12.28"]
[EventType "swiss"]
[EventCountry "ENG"]
[SourceTitle "playchess.com"]
[Source "ChessBase"]
[SourceQuality "1"]
[TimeControl "40/6000+30:3000+30"]

1. d4 {[%emt 0:00:00]} Nf6 {[%emt 0:00:00]} 2. Bf4 {[%emt 0:00:10]} d5 {[%emt 0:00:50]} 3. e3 {[%emt 0:00:30]} e6 {[%emt 0:00:24]} 4. c3 {[%emt 0:03:22]} Bd6 {[%emt 0:02:12]} 5. Bxd6 {[%emt 0:03:33]} Qxd6 {[%emt 0:00:13]} 6. f4 {[%emt 0:00:09]} Ne4 {[%emt 0:04:45]} 7. Nd2 {[%emt 0:05:02]} f5 {[%emt 0:00:45]} 8. Ngf3 {[%emt 0:12:37]} Nd7 {[%emt 0:01:09]} 9. Bd3 {[%emt 0:02:56]} Ndf6 {[%emt 0:01:13]} 10. O-O {[%emt 0:00:29]} O-O {[%emt 0:08:28]} 11. Ne5 {[%emt 0:02:42]} Bd7 {[%emt 0:01:40]} 12. h3 {[%emt 0:05:39]} Nxd2 {[%emt 0:14:44]} 13. Qxd2 {[%emt 0:00:34]} Be8 {[%emt 0:00:16]} 14. g4 {[%emt 0:01:41]} Bg6 {[%emt 0:04:17]} 15. Qg2 {[%emt 0:09:15]} Nd7 {[%emt 0:04:07]} 16. c4 {[%emt 0:06:04]} c6 {[%emt 0:01:53]} 17. c5 {[%emt 0:03:25]} Qe7 {[%emt 0:00:58]} 18. b4 {[%emt 0:11:42]} Nxe5 {[%emt 0:01:18]} 19. fxe5 {[%emt 0:00:06]} Qg5 {[%emt 0:00:42]} 20. Rae1 {[%emt 0:11:26]} fxg4 {[%emt 0:13:02]} 21. Bxg6 {[%emt 0:00:56]} Rxf1+ {[%emt 0:00:24]} 22. Kxf1 {[%emt 0:00:05]} Rf8+ {[%emt 0:02:05]} 23. Kg1 {[%emt 0:02:33]} Qh4 {[%emt 0:01:22]} 24. Rf1 {[%emt 0:02:28]} Rxf1+ {[%emt 0:00:49]} 25. Qxf1 {[%emt 0:00:05]} hxg6 {[%emt 0:01:50]} 26. hxg4 {[%emt 0:04:57]} Qxg4+ {[%emt 0:00:16]} 27. Kh2 {[%emt 0:03:37]} Qh4+ {[%emt 0:00:02]} 28. Qh3 {[%emt 0:02:03]} Qxh3+ {[%emt 0:01:39]} 29. Kxh3 {[%emt 0:01:24]} Kh7 {[%emt 0:00:02]} 30. Kg4 {[%emt 0:00:19]} Kh6 {[%emt 0:00:02]} 31. e4 {[%emt 0:00:41]} dxe4 {[%emt 0:18:51]} 32. d5 cxd5 {[%emt 0:00:02]} 33. b5 {[%emt 0:01:25]} d4 {[%emt 0:00:01]} 34. Kg3 {[%emt 0:11:11]} d3 {[%emt 0:02:16]} 35. Kf2 {[%emt 0:00:06]} g5 {[%emt 0:00:33]} 36. c6 {[%emt 0:00:11]} bxc6 {[%emt 0:00:09]} 37. bxc6 {[%emt 0:00:07]} g4 {[%emt 0:00:03]} 38. c7 {[%emt 0:00:55]} g3+ {[%emt 0:00:02]} 39. Kxg3 {[%emt 0:00:43]} d2 {[%emt 0:00:06]} 40. c8=Q {[%emt 0:00:10]} d1=Q {[%emt 0:00:10]} 41. Qxe6+ {[%emt 0:50:24]} g6 {[%emt 0:51:38]} 42. Qf6 {[%emt 0:00:00]} Qd3+ {[%emt 0:00:00]} 43. Kh4 {[%emt 0:00:00]} Qd7 {[%emt 0:00:00]} 44. e6 {[%emt 0:00:00]} Qg7 {[%emt 0:00:00]} 45. Qg5+ {[%emt 0:00:00]} Kh7 {[%emt 0:00:00]} 46. e7 {[%emt 0:00:00]} Qh8 {[%emt 0:00:00]} 47. Qf4 {[%emt 0:00:00]} Kg7+ {[%emt 0:00:00]} 48. Kg3 {[%emt 0:00:00]} Qe8 {[%emt 0:00:00]} 49. Qxe4 {[%emt 0:00:00]} Kf7 {[%emt 0:00:00]} 50. Qd5+ {[%emt 0:00:00]} Kxe7 {[%emt 0:00:00]} 51. Qc5+ {[%emt 0:00:00]} 1/2-1/2

[Event "94th Tradewise Hastings Congress"]
[Site "Hastings"]
[Date "2018.12.29"]
[Round "2"]
[White "Willow, Jonah B"]
[Black "Kjartansson, Gudmundur"]
[Result "1/2-1/2"]
[ECO "C00"]
[WhiteElo "2218"]
[BlackElo "2415"]
[Annotator "NA"]
[PlyCount "42"]
[EventDate "2018.12.28"]
[EventType "swiss"]
[EventCountry "ENG"]
[SourceTitle "playchess.com"]
[Source "ChessBase"]
[SourceQuality "1"]
[TimeControl "40/6000+30:3000+30"]

1. e4 {[%emt 0:00:00]} e6 {[%emt 0:00:00]} 2. d3 {[%emt 0:00:00]} d5 {[%emt 0:00:00]} 3. Nd2 {[%emt 0:00:02]} Nf6 {[%emt 0:00:14]} 4. Ngf3 {[%emt 0:00:04]} Nc6 {[%emt 0:00:15]} 5. c3 {[%emt 0:00:03]} e5 {[%emt 0:00:41]} 6. Be2 {[%emt 0:00:36]} Bd6 {[%emt 0:01:01]} 7. O-O {[%emt 0:00:48]} O-O {[%emt 0:00:13]} 8. Qc2 {[%emt 0:03:20]} a5 {[%emt 0:07:14]} 9. b3 {[%emt 0:00:57]} Re8 {[%emt 0:01:44]} 10. a3 {[%emt 0:01:16]} Ne7 {[%emt 0:24:05]} 11. Re1 {[%emt 0:11:06]} Ng6 {[%emt 0:00:58]} 12. Nf1 c5 {[%emt 0:09:19]} 13. exd5 {[%emt 0:14:39]} Nxd5 {[%emt 0:00:30]} 14. d4 e4 {[%emt 0:23:13]} 15. Bb5 {[%emt 0:12:32]} Bd7 {[%emt 0:02:49]} 16. Bxd7 {[%emt 0:02:11]} Qxd7 {[%emt 0:00:05]} 17. Rxe4 {[%emt 0:05:16]} Rxe4 {[%emt 0:00:12]} 18. Qxe4 {[%emt 0:00:03]} Nxc3 {[%emt 0:00:16]} 19. Qd3 {[%emt 0:00:33]} cxd4 {[%emt 0:00:34]} 20. Nxd4 {[%emt 0:02:01]} Be5 {[%emt 0:07:35]} 21. Qxc3 {[%emt 0:00:09]} Rc8 1/2-1/2

[Event "94th Tradewise Hastings Congress"]
[Site "Hastings"]
[Date "2018.12.29"]
[Round "2"]
[White "Villiers, Thomas"]
[Black "Petrov, Vladimir Sergeev"]
[Result "1/2-1/2"]
[ECO "A33"]
[WhiteElo "2205"]
[BlackElo "2365"]
[Annotator "NA"]
[PlyCount "34"]
[EventDate "2018.12.28"]
[EventType "swiss"]
[EventCountry "ENG"]
[SourceTitle "playchess.com"]
[Source "ChessBase"]
[SourceQuality "1"]
[TimeControl "40/6000+30:3000+30"]

1. Nf3 {[%emt 0:00:00]} Nf6 {[%emt 0:04:59]} 2. c4 {[%emt 0:00:00]} c5 {[%emt 0:01:07]} 3. Nc3 {[%emt 0:00:00]} Nc6 {[%emt 0:00:05]} 4. d4 {[%emt 0:00:00]} cxd4 {[%emt 0:00:06]} 5. Nxd4 {[%emt 0:00:00]} e6 {[%emt 0:00:05]} 6. g3 {[%emt 0:01:28]} Qb6 {[%emt 0:03:26]} 7. Ndb5 {[%emt 0:06:41]} Ne5 {[%emt 0:20:06]} 8. Bg2 {[%emt 0:05:38]} Nxc4 {[%emt 0:05:17]} 9. b3 {[%emt 0:00:18]} Ne5 {[%emt 0:17:28]} 10. Be3 {[%emt 0:05:11]} Bc5 {[%emt 0:09:52]} 11. Bxc5 {[%emt 0:04:04]} Qxc5 {[%emt 0:00:06]} 12. Rc1 {[%emt 0:12:10]} O-O {[%emt 0:01:37]} 13. Nd6 {[%emt 0:00:12]} Nc6 {[%emt 0:16:21]} 14. O-O {[%emt 0:06:04]} Qa5 {[%emt 0:04:40]} 15. Qc2 {[%emt 0:07:06]} Ne8 {[%emt 0:01:56]} 16. Nce4 {[%emt 0:01:02]} Nxd6 {[%emt 0:06:38]} 17. Nxd6 {[%emt 0:00:12]} Qe5 {[%emt 0:05:27]} 1/2-1/2

[Event "94th Tradewise Hastings Congress"]
[Site "Hastings"]
[Date "2018.12.29"]
[Round "2"]
[White "Payne, Matthew J"]
[Black "Spanton, Tim R"]
[Result "1-0"]
[ECO "C45"]
[WhiteElo "2182"]
[BlackElo "1954"]
[Annotator "NA"]
[PlyCount "59"]
[EventDate "2018.12.28"]
[EventType "swiss"]
[EventCountry "ENG"]
[SourceTitle "playchess.com"]
[Source "ChessBase"]
[SourceQuality "1"]
[TimeControl "40/6000+30:3000+30"]

1. e4 {[%emt 0:00:00]} e5 {[%emt 0:00:00]} 2. Nf3 {[%emt 0:00:00]} Nc6 {[%emt 0:00:00]} 3. d4 {[%emt 0:00:00]} exd4 {[%emt 0:00:00]} 4. Nxd4 {[%emt 0:00:03]} Bc5 {[%emt 0:00:00]} 5. Nxc6 {[%emt 0:00:17]} Qf6 {[%emt 0:00:11]} 6. Qf3 {[%emt 0:00:07]} bxc6 {[%emt 0:00:34]} 7. Nd2 {[%emt 0:00:41]} Rb8 {[%emt 0:02:03]} 8. Nb3 {[%emt 0:04:39]} Qxf3 {[%emt 0:01:50]} 9. gxf3 {[%emt 0:00:41]} Bb6 {[%emt 0:00:54]} 10. Rg1 {[%emt 0:05:42]} g6 {[%emt 0:00:34]} 11. Be3 {[%emt 0:04:40]} Bxe3 {[%emt 0:01:43]} 12. fxe3 {[%emt 0:00:16]} Ne7 {[%emt 0:01:07]} 13. O-O-O {[%emt 0:01:38]} O-O {[%emt 0:01:26]} 14. h4 {[%emt 0:08:31]} d6 {[%emt 0:02:34]} 15. e5 {[%emt 0:15:51]} dxe5 {[%emt 0:01:42]} 16. e4 {[%emt 0:00:09]} f5 {[%emt 0:03:47]} 17. Bc4+ {[%emt 0:02:49]} Kg7 {[%emt 0:01:24]} 18. Nc5 {[%emt 0:01:39]} fxe4 {[%emt 0:00:38]} 19. fxe4 {[%emt 0:00:08]} Rf4 {[%emt 0:02:04]} 20. Rd8 {[%emt 0:08:43]} Rf8 {[%emt 0:07:18]} 21. Rxf8 {[%emt 0:02:03]} Kxf8 {[%emt 0:00:07]} 22. Rf1+ {[%emt 0:00:03]} Ke8 {[%emt 0:00:25]} 23. Bf7+ {[%emt 0:00:47]} Kf8 {[%emt 0:00:20]} 24. Bxg6+ {[%emt 0:00:09]} Kg7 {[%emt 0:00:12]} 25. Rf7+ {[%emt 0:00:09]} Kxg6 {[%emt 0:00:12]} 26. Rxe7 {[%emt 0:00:04]} Rb5 {[%emt 0:00:39]} 27. Nd3 {[%emt 0:02:30]} Bb7 {[%emt 0:04:23]} 28. Rxc7 {[%emt 0:03:14]} a5 {[%emt 0:01:49]} 29. c4 {[%emt 0:00:47]} Rb6 {[%emt 0:00:27]} 30. c5 {[%emt 0:00:36]} 1-0

[Event "94th Tradewise Hastings Congress"]
[Site "Hastings"]
[Date "2018.12.29"]
[Round "2"]
[White "Eames, Robert S"]
[Black "Larsen, Andreas"]
[Result "1-0"]
[ECO "D08"]
[WhiteElo "2167"]
[BlackElo "1933"]
[Annotator "NA"]
[PlyCount "109"]
[EventDate "2018.12.28"]
[EventType "swiss"]
[EventCountry "ENG"]
[SourceTitle "playchess.com"]
[Source "ChessBase"]
[SourceQuality "1"]
[TimeControl "40/6000+30:3000+30"]

1. d4 {[%emt 0:01:53]} d5 {[%emt 0:00:00]} 2. c4 {[%emt 0:00:07]} e5 {[%emt 0:00:00]} 3. dxe5 {[%emt 0:00:14]} d4 {[%emt 0:00:00]} 4. Nf3 {[%emt 0:00:23]} Nc6 {[%emt 0:00:21]} 5. a3 {[%emt 0:00:22]} Nge7 {[%emt 0:05:23]} 6. b4 {[%emt 0:00:43]} Ng6 {[%emt 0:00:39]} 7. Bb2 {[%emt 0:00:39]} a5 {[%emt 0:00:26]} 8. b5 {[%emt 0:00:14]} Ncxe5 {[%emt 0:00:06]} 9. Qxd4 {[%emt 0:00:48]} Qxd4 {[%emt 0:03:01]} 10. Bxd4 {[%emt 0:00:18]} Nxc4 {[%emt 0:00:52]} 11. e3 {[%emt 0:01:06]} Nd6 {[%emt 0:07:16]} 12. Nbd2 {[%emt 0:01:03]} Bd7 {[%emt 0:04:38]} 13. a4 {[%emt 0:00:49]} Nf5 {[%emt 0:07:43]} 14. Bb2 {[%emt 0:13:06]} Bb4 {[%emt 0:06:53]} 15. Bd3 {[%emt 0:02:28]} O-O {[%emt 0:04:55]} 16. O-O {[%emt 0:08:06]} Rad8 {[%emt 0:12:42]} 17. Nb3 {[%emt 0:01:08]} Rfe8 {[%emt 0:06:36]} 18. Rac1 {[%emt 0:03:14]} c6 {[%emt 0:06:27]} 19. bxc6 {[%emt 0:02:30]} bxc6 {[%emt 0:00:08]} 20. Bxf5 {[%emt 0:05:56]} Bxf5 {[%emt 0:02:00]} 21. Nfd4 {[%emt 0:00:06]} Bd3 {[%emt 0:13:23]} 22. Rfd1 {[%emt 0:03:13]} Ne5 {[%emt 0:01:21]} 23. f4 {[%emt 0:12:08]} Nc4 {[%emt 0:02:42]} 24. Bc3 {[%emt 0:00:26]} Ba3 {[%emt 0:06:51]} 25. Ra1 {[%emt 0:07:23]} Be4 {[%emt 0:02:05]} 26. Nxa5 {[%emt 0:04:07]} Nxe3 {[%emt 0:06:37]} 27. Re1 {[%emt 0:03:49]} Bc5 {[%emt 0:00:06]} 28. Nb7 {[%emt 0:07:57]} Bxd4 {[%emt 0:02:53]} 29. Bxd4 {[%emt 0:00:26]} Rxd4 {[%emt 0:00:24]} 30. Rxe3 {[%emt 0:00:11]} Ra8 {[%emt 0:00:59]} 31. Nc5 {[%emt 0:01:33]} f5 {[%emt 0:00:17]} 32. a5 {[%emt 0:03:04]} Rc4 {[%emt 0:00:29]} 33. Nd7 {[%emt 0:05:14]} Rc2 {[%emt 0:02:18]} 34. Rg3 {[%emt 0:07:26]} Ra7 {[%emt 0:00:12]} 35. Ne5 {[%emt 0:01:49]} g6 {[%emt 0:00:01]} 36. h4 {[%emt 0:00:20]} Rb2 {[%emt 0:04:01]} 37. h5 {[%emt 0:02:44]} Rb1+ {[%emt 0:00:33]} 38. Rxb1 {[%emt 0:00:09]} Bxb1 {[%emt 0:00:05]} 39. Rb3 {[%emt 0:01:58]} Ba2 {[%emt 0:01:35]} 40. Rb8+ {[%emt 0:04:49]} Kg7 {[%emt 0:00:15]} 41. Nxc6 {[%emt 0:50:36]} Ra6 {[%emt 0:10:40]} 42. Rb6 {[%emt 0:00:00]} Ra8 {[%emt 0:01:03]} 43. hxg6 {[%emt 0:00:00]} hxg6 {[%emt 0:01:39]} 44. a6 {[%emt 0:00:00]} Bc4 {[%emt 0:07:30]} 45. Nb4 {[%emt 0:00:00]} Kh6 {[%emt 0:01:59]} 46. Kf2 {[%emt 0:00:00]} Kh5 {[%emt 0:03:18]} 47. Kg3 {[%emt 0:00:00]} Kh6 {[%emt 0:02:42]} 48. Kh4 {[%emt 0:00:00]} Be2 {[%emt 0:05:22]} 49. g4 {[%emt 0:00:00]} Bxg4 {[%emt 0:06:23]} 50. Nc6 {[%emt 0:00:00]} Be2 {[%emt 0:03:21]} 51. a7 {[%emt 0:00:00]} Bf3 {[%emt 0:02:08]} 52. Ne5 {[%emt 0:00:00]} Bh5 {[%emt 0:05:34]} 53. Rb7 {[%emt 0:00:00]} Be2 {[%emt 0:00:33]} 54. Nf7+ {[%emt 0:00:00]} Kg7 {[%emt 0:01:16]} 55. Ng5+ {[%emt 0:00:00]} 1-0